[Event "2nd Cambridge Open 2024"]
[Site "Cambridge"]
[Date "2024.02.23"]
[Round "7.41"]
[White "De Coverly, Roger D"]
[Black "Homer, Stephen J"]
[Result "0-1"]
[ECO "B94"]
[WhiteElo "1893"]
[BlackElo "2045"]
[Annotator "RC"]
[PlyCount "60"]
[EventDate "2024.02.18"]
[EventType "swiss"]
[EventCountry "ENG"]
[SourceTitle "playchess.com"]
[Source "ChessBase"]
[SourceQuality "1"]
[TimeControl "5400+30"]

1. e4 {[%emt 0:00:03]} c5 {[%emt 0:03:36]} 2. Nf3 {[%emt 0:00:11]} d6 {[%emt 0:00:26]} 3. d4 {[%emt 0:00:14]} cxd4 {[%emt 0:00:01]} 4. Nxd4 {[%emt 0:00:10]} Nf6 {[%emt 0:00:06]} 5. Nc3 {[%emt 0:00:06]} a6 {[%emt 0:00:06]} 6. Bg5 {[%emt 0:00:15]} Nbd7 {[%emt 0:00:02]} 7. Qe2 {[%emt 0:01:21]} h6 {[%emt 0:00:16]} 8. Be3 {[%emt 0:01:45]} b5 {[%emt 0:02:27]} 9. a3 {[%emt 0:08:44]} g6 {[%emt 0:07:18]} 10. f3 {[%emt 0:05:53]} Bg7 {[%emt 0:01:02]} 11. O-O-O {[%emt 0:02:23]} Bb7 {[%emt 0:09:22]} 12. Nb3 {[%emt 0:04:56]} Qc7 {[%emt 0:02:32]} 13. g3 {[%emt 0:05:55]} Ne5 {[%emt 0:00:42]} 14. Nd5 {[%emt 0:03:02]} Bxd5 {[%emt 0:05:03]} 15. exd5 {[%emt 0:00:15]} Rc8 {[%emt 0:00:42]} 16. Bh3 {[%emt 0:02:58]} Rb8 {[%emt 0:15:26]} 17. Kb1 {[%emt 0:06:35]} O-O {[%emt 0:03:03]} 18. Rhe1 {[%emt 0:02:37]} a5 {[%emt 0:04:40]} 19. f4 {[%emt 0:05:38]} Nc4 {[%emt 0:00:27]} 20. Bc1 {[%emt 0:00:28]} Rb7 {[%emt 0:00:59]} 21. Bg2 {[%emt 0:02:50]} a4 {[%emt 0:23:54]} 22. Nd4 {[%emt 0:02:04]} Qc5 {[%emt 0:02:47]} 23. Nc6 {[%emt 0:03:29]} b4 {[%emt 0:05:36]} 24. axb4 {[%emt 0:02:54]} Rxb4 {[%emt 0:00:05]} 25. Nxb4 {[%emt 0:04:58]} Qxb4 {[%emt 0:00:01]} 26. c3 {[%emt 0:01:04]} Qb3 {[%emt 0:00:24]} 27. Rd2 {[%emt 0:06:43]} Rb8 {[%emt 0:03:22]} 28. Qd1 {[%emt 0:10:38]} Qxc3 {[%emt 0:04:45]} 29. Ka1 {[%emt 0:00:47]} Qb4 {[%emt 0:01:03]} 30. Re4 {[%emt 0:06:18]} Nxe4 {[%emt 0:00:27]} 0-1

[Event "2nd Cambridge Open 2024"]
[Site "Cambridge"]
[Date "2024.02.23"]
[Round "7.42"]
[White "Pert, Nina"]
[Black "Woods, Yannick"]
[Result "0-1"]
[ECO "C54"]
[WhiteElo "1968"]
[BlackElo "1856"]
[Annotator "RC"]
[PlyCount "112"]
[EventDate "2024.02.18"]
[EventType "swiss"]
[EventCountry "ENG"]
[SourceTitle "playchess.com"]
[Source "ChessBase"]
[SourceQuality "1"]
[TimeControl "5400+30"]

1. e4 {[%emt 0:00:02]} e5 {[%emt 0:00:35]} 2. Nf3 {[%emt 0:00:05]} Nc6 {[%emt 0:00:04]} 3. Bc4 {[%emt 0:00:05]} Bc5 {[%emt 0:00:04]} 4. c3 {[%emt 0:00:06]} Nf6 {[%emt 0:00:04]} 5. d4 {[%emt 0:00:04]} exd4 {[%emt 0:00:11]} 6. cxd4 {[%emt 0:00:04]} Bb4+ {[%emt 0:00:07]} 7. Nc3 {[%emt 0:00:12]} Nxe4 {[%emt 0:00:15]} 8. O-O {[%emt 0:00:20]} Bxc3 {[%emt 0:00:04]} 9. d5 {[%emt 0:00:25]} Bf6 {[%emt 0:00:18]} 10. Re1 {[%emt 0:00:12]} Ne7 {[%emt 0:00:07]} 11. Rxe4 {[%emt 0:00:05]} d6 {[%emt 0:00:05]} 12. Bg5 {[%emt 0:00:42]} Bxg5 {[%emt 0:00:10]} 13. Nxg5 {[%emt 0:00:04]} h6 {[%emt 0:01:29]} 14. Qe2 {[%emt 0:02:04]} hxg5 {[%emt 0:00:12]} 15. Re1 {[%emt 0:00:03]} Be6 {[%emt 0:00:11]} 16. dxe6 {[%emt 0:00:05]} f6 {[%emt 0:00:10]} 17. Re3 {[%emt 0:03:47]} c6 {[%emt 0:03:25]} 18. Rb3 {[%emt 0:00:24]} Qc7 {[%emt 0:00:44]} 19. h3 {[%emt 0:01:50]} g6 {[%emt 0:32:23]} 20. Bd3 {[%emt 0:11:48]} Kf8 {[%emt 0:02:48]} 21. Bc2 {[%emt 0:06:31]} d5 {[%emt 0:03:09]} 22. Qf3 {[%emt 0:12:19]} Kg7 {[%emt 0:01:55]} 23. Ra3 {[%emt 0:11:55]} Rh4 {[%emt 0:06:53]} 24. Qd1 {[%emt 0:09:28]} Rah8 {[%emt 0:16:40]} 25. Rg3 {[%emt 0:04:25]} Qd6 {[%emt 0:09:28]} 26. Qe2 {[%emt 0:05:33]} Re8 {[%emt 0:01:20]} 27. Qe3 {[%emt 0:01:37]} Qf4 {[%emt 0:10:08]} 28. Qe2 {[%emt 0:04:59]} a6 {[%emt 0:05:30]} 29. Rb3 {[%emt 0:01:40]} Qc7 {[%emt 0:01:08]} 30. Qd2 {[%emt 0:05:02]} c5 {[%emt 0:02:47]} 31. Rd3 {[%emt 0:07:38]} g4 {[%emt 0:02:20]} 32. Rg3 {[%emt 0:00:49]} gxh3 {[%emt 0:00:36]} 33. gxh3 {[%emt 0:00:23]} Qf4 {[%emt 0:00:37]} 34. Qd3 {[%emt 0:00:37]} c4 {[%emt 0:00:59]} 35. Qc3 {[%emt 0:03:31]} Qd4 {[%emt 0:00:25]} 36. Qb4 {[%emt 0:01:18]} Rf4 {[%emt 0:00:35]} 37. Ree3 {[%emt 0:02:41]} b5 {[%emt 0:00:26]} 38. a4 {[%emt 0:01:16]} Qb6 {[%emt 0:00:36]} 39. Qd2 {[%emt 0:01:25]} d4 {[%emt 0:00:23]} 40. Re1 {[%emt 0:00:29]} Rh4 {[%emt 0:00:27]} 41. a5 {[%emt 0:00:19]} Qd6 {[%emt 0:00:25]} 42. Be4 {[%emt 0:00:16]} f5 {[%emt 0:00:45]} 43. Bg2 {[%emt 0:01:08]} Qf4 {[%emt 0:00:18]} 44. Qb4 {[%emt 0:00:42]} Rh5 {[%emt 0:00:38]} 45. Rd1 {[%emt 0:00:38]} d3 {[%emt 0:00:22]} 46. Qc5 {[%emt 0:00:18]} Rg5 {[%emt 0:00:26]} 47. Re3 {[%emt 0:00:31]} Qh4 {[%emt 0:00:44]} 48. Qd6 {[%emt 0:00:27]} f4 {[%emt 0:00:25]} 49. Rf3 {[%emt 0:00:05]} Nd5 {[%emt 0:00:30]} 50. Qxa6 {[%emt 0:00:53]} Re5 {[%emt 0:00:22]} 51. Qxb5 {[%emt 0:00:18]} R8xe6 {[%emt 0:00:13]} 52. Qxc4 {[%emt 0:00:52]} Re1+ {[%emt 0:00:35]} 53. Rxe1 {[%emt 0:00:03]} Rxe1+ {[%emt 0:00:08]} 54. Kh2 {[%emt 0:00:02]} d2 {[%emt 0:00:36]} 55. Qd4+ {[%emt 0:00:03]} Nf6 {[%emt 0:00:13]} 56. Qxd2 {[%emt 0:00:03]} Ng4# {[%emt 0:00:34]} 0-1

[Event "2nd Cambridge Open 2024"]
[Site "Cambridge"]
[Date "2024.02.23"]
[Round "7.43"]
[White "Sasikumar, Srivathsan"]
[Black "Volovich, Julia"]
[Result "1-0"]
[ECO "C01"]
[WhiteElo "1696"]
[BlackElo "1983"]
[Annotator "RC"]
[PlyCount "127"]
[EventDate "2024.02.18"]
[EventType "swiss"]
[EventCountry "ENG"]
[SourceTitle "playchess.com"]
[Source "ChessBase"]
[SourceQuality "1"]
[TimeControl "5400+30"]

1. e4 {[%emt 0:00:04]} e6 {[%emt 0:00:04]} 2. d4 {[%emt 0:00:15]} d5 {[%emt 0:00:05]} 3. Be3 {[%emt 0:00:36]} dxe4 {[%emt 0:00:47]} 4. Nd2 {[%emt 0:00:08]} Nf6 {[%emt 0:00:54]} 5. c3 {[%emt 0:00:06]} b6 {[%emt 0:01:31]} 6. g3 {[%emt 0:03:40]} c5 {[%emt 0:02:08]} 7. Bg2 {[%emt 0:03:10]} Bb7 {[%emt 0:00:24]} 8. Qc2 {[%emt 0:02:26]} cxd4 {[%emt 0:01:45]} 9. Bxd4 {[%emt 0:02:03]} Nc6 {[%emt 0:01:09]} 10. Bxf6 {[%emt 0:01:22]} gxf6 {[%emt 0:00:18]} 11. Nxe4 {[%emt 0:04:11]} Be7 {[%emt 0:00:45]} 12. Ne2 {[%emt 0:04:17]} f5 {[%emt 0:02:36]} 13. Nd2 {[%emt 0:03:18]} Qc7 {[%emt 0:03:54]} 14. O-O-O {[%emt 0:05:02]} O-O-O {[%emt 0:07:18]} 15. Nb3 {[%emt 0:04:14]} Kb8 {[%emt 0:07:14]} 16. Rhg1 {[%emt 0:05:17]} Rxd1+ {[%emt 1:07:38]} 17. Qxd1 {[%emt 0:00:34]} Rd8 {[%emt 0:00:00]} 18. Qc2 {[%emt 0:03:05]} Ne5 {[%emt 0:00:00]} 19. Bxb7 {[%emt 0:01:15]} Qxb7 {[%emt 0:00:00]} 20. Ned4 {[%emt 0:02:11]} a5 {[%emt 0:00:00]} 21. Re1 {[%emt 0:03:12]} Nc4 {[%emt 0:00:00]} 22. Nd2 {[%emt 0:04:26]} Qd5 {[%emt 0:00:00]} 23. Nxc4 {[%emt 0:23:13]} Qxc4 {[%emt 0:00:00]} 24. b3 {[%emt 0:01:23]} Qd5 {[%emt 0:00:00]} 25. Kb2 {[%emt 0:02:09]} Bf6 {[%emt 0:00:00]} 26. Ne2 {[%emt 0:02:12]} Qf3 {[%emt 0:00:00]} 27. Nf4 {[%emt 0:02:07]} Rc8 {[%emt 0:00:00]} 28. Re3 {[%emt 0:00:17]} Qc6 {[%emt 0:00:00]} 29. Qd2 {[%emt 0:00:46]} b5 {[%emt 0:00:00]} 30. Kc2 {[%emt 0:01:07]} Qc5 {[%emt 0:01:49]} 31. Ne2 {[%emt 0:02:52]} b4 {[%emt 0:01:29]} 32. c4 {[%emt 0:00:14]} Rd8 {[%emt 0:02:47]} 33. Rd3 {[%emt 0:01:37]} Rxd3 {[%emt 0:00:18]} 34. Qxd3 {[%emt 0:00:06]} Kc7 {[%emt 0:00:14]} 35. Qe3 {[%emt 0:01:47]} Qxe3 {[%emt 0:01:31]} 36. fxe3 {[%emt 0:00:05]} e5 {[%emt 0:00:10]} 37. Kd3 {[%emt 0:00:58]} Bg5 {[%emt 0:00:54]} 38. Ng1 {[%emt 0:02:41]} Kd6 {[%emt 0:00:09]} 39. h3 {[%emt 0:00:52]} h5 {[%emt 0:00:28]} 40. h4 {[%emt 0:02:09]} Bd8 {[%emt 0:00:07]} 41. Nh3 {[%emt 0:00:15]} Bc7 {[%emt 0:00:24]} 42. e4 {[%emt 0:01:34]} fxe4+ {[%emt 0:01:36]} 43. Kxe4 {[%emt 0:00:11]} Ke6 {[%emt 0:00:14]} 44. Ng5+ {[%emt 0:00:22]} Kf6 {[%emt 0:00:05]} 45. c5 {[%emt 0:00:22]} Kg6 {[%emt 0:00:15]} 46. Kd5 {[%emt 0:00:57]} f5 {[%emt 0:00:08]} 47. Ne6 {[%emt 0:01:33]} Bb8 {[%emt 0:01:07]} 48. c6 {[%emt 0:00:30]} e4 {[%emt 0:00:09]} 49. c7 {[%emt 0:00:33]} Bxc7 {[%emt 0:00:50]} 50. Nxc7 {[%emt 0:00:02]} f4 {[%emt 0:00:27]} 51. Kxe4 {[%emt 0:00:34]} fxg3 {[%emt 0:00:04]} 52. Kf3 {[%emt 0:00:07]} Kf5 {[%emt 0:00:05]} 53. Nd5 {[%emt 0:01:05]} Ke5 {[%emt 0:00:14]} 54. Ne3 {[%emt 0:00:19]} Kd4 {[%emt 0:00:08]} 55. Nc4 {[%emt 0:00:09]} a4 {[%emt 0:00:03]} 56. Kxg3 {[%emt 0:02:54]} Kc3 {[%emt 0:00:04]} 57. Na5 {[%emt 0:02:02]} Kb2 {[%emt 0:00:55]} 58. bxa4 {[%emt 0:02:44]} Kxa2 {[%emt 0:00:12]} 59. Kf3 {[%emt 0:00:20]} Ka3 {[%emt 0:00:25]} 60. Nc4+ {[%emt 0:00:25]} Kxa4 {[%emt 0:00:11]} 61. Nd2 {[%emt 0:00:18]} Kb5 {[%emt 0:02:04]} 62. Kf4 {[%emt 0:00:37]} Kc5 {[%emt 0:00:07]} 63. Ke5 {[%emt 0:00:07]} Kb5 {[%emt 0:00:08]} 64. Kd5 {[%emt 0:00:12]} 1-0

[Event "2nd Cambridge Open 2024"]
[Site "Cambridge"]
[Date "2024.02.23"]
[Round "7.45"]
[White "Reynolds, D Ian W"]
[Black "Wynarczyk, Raymond"]
[Result "1/2-1/2"]
[ECO "C41"]
[WhiteElo "1960"]
[BlackElo "1703"]
[Annotator "NA RC"]
[PlyCount "35"]
[EventDate "2024.02.18"]
[EventType "swiss"]
[EventCountry "ENG"]
[SourceTitle "playchess.com"]
[Source "ChessBase"]
[SourceQuality "1"]
[TimeControl "5400+30"]

1. e4 {[%emt 0:00:03]} d6 {[%emt 0:00:15]} 2. d4 {[%emt 0:00:20]} Nf6 {[%emt 0:00:09]} 3. Nc3 {[%emt 0:00:13]} Nbd7 {[%emt 0:00:19]} 4. Nf3 {[%emt 0:01:56]} e5 {[%emt 0:00:09]} 5. Be2 {[%emt 0:05:47]} Be7 {[%emt 0:01:21]} 6. O-O {[%emt 0:01:59]} O-O {[%emt 0:06:49]} 7. Re1 {[%emt 0:03:38]} c6 {[%emt 0:01:33]} 8. a4 {[%emt 0:05:13]} b6 {[%emt 0:03:27]} 9. Bf1 {[%emt 0:02:44]} Qc7 {[%emt 0:01:34]} 10. Bg5 {[%emt 0:08:49]} Re8 {[%emt 0:02:00]} 11. Qd3 {[%emt 0:10:38]} exd4 {[%emt 0:02:31]} 12. Qxd4 {[%emt 0:01:56]} Ne5 {[%emt 0:01:21]} 13. Nxe5 {[%emt 0:01:58]} dxe5 {[%emt 0:00:12]} 14. Qe3 {[%emt 0:02:06]} Ng4 {[%emt 0:05:53]} 15. Qc1 {[%emt 0:00:57]} Bxg5 {[%emt 0:06:09]} 16. Qxg5 {[%emt 0:00:12]} Qd8 {[%emt 0:00:42]} 17. Qxd8 {[%emt 0:00:35]} Rxd8 {[%emt 0:00:07]} 18. Rad1 {[%emt 0:00:51]} 1/2-1/2

[Event "2nd Cambridge Open 2024"]
[Site "Cambridge"]
[Date "2024.02.23"]
[Round "7.46"]
[White "Prince, Alan R"]
[Black "Mata, Adilson"]
[Result "0-1"]
[ECO "C00"]
[WhiteElo "1652"]
[BlackElo "1924"]
[Annotator "RC"]
[PlyCount "106"]
[EventDate "2024.02.18"]
[EventType "swiss"]
[EventCountry "ENG"]
[SourceTitle "playchess.com"]
[Source "ChessBase"]
[SourceQuality "1"]
[TimeControl "5400+30"]

1. Nf3 {[%emt 0:00:02]} d5 {[%emt 0:05:39]} 2. g3 {[%emt 0:00:08]} Nf6 {[%emt 0:00:13]} 3. Bg2 {[%emt 0:00:05]} e6 {[%emt 0:00:22]} 4. d3 {[%emt 0:00:16]} c5 {[%emt 0:00:48]} 5. Nbd2 {[%emt 0:00:11]} Nc6 {[%emt 0:01:09]} 6. O-O {[%emt 0:00:29]} Be7 {[%emt 0:00:44]} 7. e4 {[%emt 0:00:14]} O-O {[%emt 0:00:28]} 8. Re1 {[%emt 0:00:29]} d4 {[%emt 0:05:02]} 9. e5 {[%emt 0:04:59]} Nd7 {[%emt 0:02:35]} 10. h4 {[%emt 0:03:53]} Qc7 {[%emt 0:00:27]} 11. Qe2 {[%emt 0:05:15]} Rb8 {[%emt 0:02:49]} 12. Nf1 {[%emt 0:11:33]} b5 {[%emt 0:03:36]} 13. Bf4 {[%emt 0:03:26]} Nb6 {[%emt 0:05:48]} 14. Ng5 {[%emt 0:02:52]} h6 {[%emt 0:01:23]} 15. Ne4 {[%emt 0:10:03]} Nd5 {[%emt 0:03:08]} 16. Nf6+ {[%emt 0:11:41]} Bxf6 {[%emt 0:03:55]} 17. Bxd5 {[%emt 0:01:14]} Bd8 {[%emt 0:01:23]} 18. Be4 {[%emt 0:02:16]} Nb4 {[%emt 0:15:20]} 19. a3 {[%emt 0:06:13]} Nc6 {[%emt 0:03:53]} 20. Bg2 {[%emt 0:07:04]} Bb7 {[%emt 0:01:53]} 21. Qg4 {[%emt 0:06:09]} Kh8 {[%emt 0:00:55]} 22. Qh5 {[%emt 0:01:40]} Ne7 {[%emt 0:05:40]} 23. Be4 {[%emt 0:01:01]} Bxe4 {[%emt 0:02:37]} 24. Rxe4 {[%emt 0:00:08]} Nf5 {[%emt 0:03:06]} 25. Nh2 {[%emt 0:03:24]} a5 {[%emt 0:01:41]} 26. Qe2 {[%emt 0:06:52]} a4 {[%emt 0:01:38]} 27. Ng4 {[%emt 0:00:16]} Be7 {[%emt 0:01:38]} 28. Kg2 {[%emt 0:00:11]} Rfc8 {[%emt 0:01:34]} 29. Rh1 {[%emt 0:01:31]} c4 {[%emt 0:05:50]} 30. Nxh6 {[%emt 0:02:22]} Nxh6 {[%emt 0:03:53]} 31. Qh5 {[%emt 0:02:09]} Bf8 {[%emt 0:00:50]} 32. g4 {[%emt 0:00:56]} g6 {[%emt 0:05:59]} 33. Qg5 {[%emt 0:00:27]} Qd8 {[%emt 0:00:14]} 34. h5 {[%emt 0:01:43]} Qxg5 {[%emt 0:02:19]} 35. Bxg5 {[%emt 0:00:03]} Kh7 {[%emt 0:00:23]} 36. hxg6+ {[%emt 0:00:51]} Kxg6 {[%emt 0:00:11]} 37. Bf6 {[%emt 0:03:05]} c3 {[%emt 0:03:13]} 38. bxc3 {[%emt 0:00:07]} Rxc3 {[%emt 0:02:33]} 39. Rh5 {[%emt 0:01:33]} Rxc2 {[%emt 0:01:57]} 40. Rg5+ {[%emt 0:00:03]} Kh7 {[%emt 0:00:12]} 41. Rh5 {[%emt 0:00:16]} Kg6 {[%emt 0:01:18]} 42. Rg5+ {[%emt 0:00:02]} Kh7 {[%emt 0:00:05]} 43. Rh5 {[%emt 0:00:05]} Bg7 {[%emt 0:00:25]} 44. g5 {[%emt 0:01:00]} Kg6 {[%emt 0:00:04]} 45. Bxg7 {[%emt 0:02:05]} Kxh5 {[%emt 0:00:09]} 46. gxh6 {[%emt 0:00:09]} Kg6 {[%emt 0:03:06]} 47. Rg4+ {[%emt 0:00:03]} Kh7 {[%emt 0:00:16]} 48. Rxd4 {[%emt 0:00:54]} b4 {[%emt 0:00:30]} 49. axb4 {[%emt 0:00:53]} a3 {[%emt 0:00:07]} 50. b5 {[%emt 0:00:07]} Ra8 {[%emt 0:00:16]} 51. Rd7 {[%emt 0:01:17]} a2 {[%emt 0:00:07]} 52. Rxf7 {[%emt 0:00:21]} a1=Q {[%emt 0:01:14]} 53. Bf6+ {[%emt 0:01:01]} Kxh6 {[%emt 0:00:23]} 0-1

[Event "2nd Cambridge Open 2024"]
[Site "Cambridge"]
[Date "2024.02.23"]
[Round "7.47"]
[White "OShea, Colm"]
[Black "Simpson, Ben"]
[Result "0-1"]
[ECO "C54"]
[WhiteElo "1729"]
[BlackElo "1873"]
[Annotator "NA RC"]
[PlyCount "70"]
[EventDate "2024.02.18"]
[EventType "swiss"]
[EventCountry "ENG"]
[SourceTitle "playchess.com"]
[Source "ChessBase"]
[SourceQuality "1"]
[TimeControl "5400+30"]

1. e4 {[%emt 0:00:01]} e5 {[%emt 0:00:02]} 2. Nf3 {[%emt 0:00:04]} Nc6 {[%emt 0:00:03]} 3. Bc4 {[%emt 0:00:04]} Bc5 {[%emt 0:00:04]} 4. c3 {[%emt 0:00:04]} Nf6 {[%emt 0:00:03]} 5. d3 {[%emt 0:00:05]} a5 {[%emt 0:00:06]} 6. O-O {[%emt 0:01:39]} d6 {[%emt 0:00:09]} 7. Re1 {[%emt 0:00:52]} Ba7 {[%emt 0:00:21]} 8. Nbd2 {[%emt 0:03:21]} Ne7 {[%emt 0:04:33]} 9. Nf1 {[%emt 0:01:59]} Ng6 {[%emt 0:00:13]} 10. d4 {[%emt 0:04:12]} O-O {[%emt 0:05:21]} 11. h3 {[%emt 0:02:54]} c6 {[%emt 0:08:12]} 12. Bb3 {[%emt 0:01:56]} h6 {[%emt 0:05:26]} 13. Ng3 {[%emt 0:00:42]} Be6 {[%emt 0:08:45]} 14. Bxe6 {[%emt 0:19:11]} fxe6 {[%emt 0:00:04]} 15. Qb3 {[%emt 0:08:38]} Qd7 {[%emt 0:05:08]} 16. dxe5 {[%emt 0:02:09]} a4 {[%emt 0:04:56]} 17. Qc2 {[%emt 0:02:04]} dxe5 {[%emt 0:00:20]} 18. Be3 {[%emt 0:01:24]} Qc7 {[%emt 0:03:54]} 19. Bxa7 {[%emt 0:00:28]} Rxa7 {[%emt 0:00:02]} 20. Rad1 {[%emt 0:02:26]} Qa5 {[%emt 0:09:07]} 21. Re3 {[%emt 0:04:15]} Nf4 {[%emt 0:00:42]} 22. c4 {[%emt 0:06:51]} g5 {[%emt 0:09:40]} 23. c5 {[%emt 0:13:51]} g4 {[%emt 0:03:09]} 24. hxg4 {[%emt 0:00:11]} Nxg4 {[%emt 0:00:03]} 25. Ra3 {[%emt 0:00:55]} b5 {[%emt 0:09:07]} 26. cxb6 {[%emt 0:00:45]} Qxb6 {[%emt 0:00:02]} 27. Rd2 {[%emt 0:00:58]} Rg7 {[%emt 0:01:24]} 28. Ne1 {[%emt 0:05:35]} h5 {[%emt 0:03:28]} 29. Rf3 {[%emt 0:01:49]} h4 {[%emt 0:00:21]} 30. Nf1 {[%emt 0:00:56]} h3 {[%emt 0:01:17]} 31. g3 {[%emt 0:00:56]} Qb5 {[%emt 0:13:14]} 32. Nh2 {[%emt 0:07:19]} Nxh2 {[%emt 0:00:36]} 33. Kxh2 {[%emt 0:00:04]} Qf1 {[%emt 0:00:02]} 34. Rd1 {[%emt 0:02:30]} Ne2 {[%emt 0:03:04]} 35. Rxf8+ {[%emt 0:00:04]} Kh7 {[%emt 0:01:19]} 0-1

[Event "2nd Cambridge Open 2024"]
[Site "Cambridge"]
[Date "2024.02.24"]
[Round "8.1"]
[White "Tiviakov, Sergei"]
[Black "Haubro, Martin"]
[Result "0-1"]
[ECO "B91"]
[WhiteElo "2537"]
[BlackElo "2418"]
[Annotator "RC"]
[PlyCount "108"]
[EventDate "2024.02.18"]
[EventType "swiss"]
[EventCountry "ENG"]
[SourceTitle "playchess.com"]
[Source "ChessBase"]
[SourceQuality "1"]
[TimeControl "5400+30"]

1. e4 {[%emt 0:00:03]} c5 {[%emt 0:00:03]} 2. Nc3 {[%emt 0:00:08]} a6 {[%emt 0:01:02]} 3. Nge2 {[%emt 0:00:12]} d6 {[%emt 0:00:04]} 4. g3 {[%emt 0:00:10]} g6 {[%emt 0:00:04]} 5. Bg2 {[%emt 0:00:33]} Bg7 {[%emt 0:00:04]} 6. d4 {[%emt 0:00:47]} cxd4 {[%emt 0:00:04]} 7. Nxd4 {[%emt 0:00:05]} Nf6 {[%emt 0:00:05]} 8. O-O {[%emt 0:00:59]} O-O {[%emt 0:00:07]} 9. b3 {[%emt 0:02:59]} Bd7 {[%emt 0:17:36]} 10. Bb2 {[%emt 0:01:02]} Nc6 {[%emt 0:00:19]} 11. Nde2 {[%emt 0:03:44]} Rc8 {[%emt 0:02:40]} 12. Rb1 {[%emt 0:02:59]} Qa5 {[%emt 0:07:41]} 13. Nd5 {[%emt 0:07:14]} Nxd5 {[%emt 0:17:27]} 14. exd5 {[%emt 0:00:19]} Ne5 {[%emt 0:00:05]} 15. a4 {[%emt 0:08:44]} Ng4 {[%emt 0:06:10]} 16. Nd4 {[%emt 0:06:41]} b5 {[%emt 0:11:27]} 17. axb5 {[%emt 0:08:13]} axb5 {[%emt 0:00:05]} 18. h3 {[%emt 0:09:02]} Nf6 {[%emt 0:00:11]} 19. Re1 {[%emt 0:00:03]} Rfe8 {[%emt 0:00:41]} 20. Nc6 {[%emt 0:00:36]} Bxc6 {[%emt 0:01:06]} 21. dxc6 {[%emt 0:00:09]} Nh5 {[%emt 0:03:20]} 22. c4 {[%emt 0:03:03]} b4 {[%emt 0:06:56]} 23. Ra1 {[%emt 0:10:43]} Qc5 {[%emt 0:00:10]} 24. Bxg7 {[%emt 0:00:05]} Nxg7 {[%emt 0:00:17]} 25. Qd5 {[%emt 0:02:13]} Ne6 {[%emt 0:00:18]} 26. Ra5 {[%emt 0:04:49]} Qb6 {[%emt 0:05:00]} 27. Rb5 {[%emt 0:02:08]} Qd4 {[%emt 0:00:03]} 28. Rxe6 {[%emt 0:01:22]} Qa1+ {[%emt 0:00:03]} 29. Kh2 {[%emt 0:00:13]} fxe6 {[%emt 0:00:04]} 30. Qxe6+ {[%emt 0:00:04]} Kg7 {[%emt 0:00:05]} 31. Rxb4 {[%emt 0:00:20]} Qf6 {[%emt 0:01:44]} 32. Qxf6+ {[%emt 0:01:53]} Kxf6 {[%emt 0:00:04]} 33. Rb7 {[%emt 0:00:13]} Ke5 {[%emt 0:00:19]} 34. g4 {[%emt 0:10:43]} h6 {[%emt 0:03:33]} 35. Kg3 {[%emt 0:00:20]} g5 {[%emt 0:06:18]} 36. Rb5+ {[%emt 0:01:08]} Kd4 {[%emt 0:00:40]} 37. h4 {[%emt 0:00:04]} gxh4+ {[%emt 0:05:19]} 38. Kxh4 {[%emt 0:00:05]} Rf8 {[%emt 0:01:15]} 39. Kg3 {[%emt 0:00:24]} Rb8 {[%emt 0:00:31]} 40. c7 {[%emt 0:00:38]} Rbc8 {[%emt 0:00:04]} 41. Rb7 {[%emt 0:00:05]} e6 {[%emt 0:00:45]} 42. Rb6 {[%emt 0:00:19]} Ke5 {[%emt 0:00:48]} 43. Rc6 {[%emt 0:05:14]} Rf7 {[%emt 0:00:27]} 44. f3 {[%emt 0:06:01]} Rd7 {[%emt 0:00:24]} 45. f4+ {[%emt 0:00:20]} Kf6 {[%emt 0:02:45]} 46. f5 {[%emt 0:01:48]} exf5 {[%emt 0:00:36]} 47. c5 {[%emt 0:01:04]} Rcxc7 {[%emt 0:00:10]} 48. Rxc7 {[%emt 0:00:03]} Rxc7 {[%emt 0:00:06]} 49. c6 {[%emt 0:00:01]} fxg4 {[%emt 0:02:03]} 50. b4 {[%emt 0:00:09]} Ke5 {[%emt 0:00:27]} 51. b5 {[%emt 0:00:04]} d5 {[%emt 0:00:05]} 52. Kxg4 {[%emt 0:00:03]} Kd6 {[%emt 0:00:56]} 53. Kh5 {[%emt 0:00:13]} d4 {[%emt 0:00:39]} 54. b6 {[%emt 0:00:05]} Rxc6 {[%emt 0:00:10]} 0-1